bitfinex-derivatives/quotes_BTCF0:USTF0_20250127
["timestamp","ask_amount","ask_price","bid_price","bid_amount"]
[1738002705826,0.36998098,99432.0,99409.0,0.3608]
[1738002706135,0.562014,99432.0,99409.0,0.3608]
[1738002706340,0.3608,99432.0,99424.0,0.3608]
[1738002706537,0.00015094,99428.0,99424.0,0.3608]
[1738002707134,0.00015094,99428.0,99416.0,0.00015094]
[1738002707339,0.00999,99427.0,99417.0,0.3608]
[1738002707544,0.201241,99418.0,99416.0,0.00015094]
[1738002707842,0.20123,99424.0,99416.0,0.00015094]
[1738002708038,0.00999,99427.0,99416.0,0.00015094]
[1738002708231,0.201241,99418.0,99416.0,0.00015094]
[1738002709133,0.20123,99424.0,99416.0,0.00015094]
[1738002709335,0.01399,99427.0,99416.0,0.00015094]
[1738002709531,0.201242,99418.0,99416.0,0.00015094]
[1738002710045,0.201242,99418.0,99417.0,0.001]
[1738002710227,0.205242,99418.0,99417.0,0.001]
[1738002710637,0.006,99418.0,99416.0,0.00115094]
[1738002710838,0.207243,99418.0,99416.0,0.00115094]
[1738002711032,0.3608,99417.0,99416.0,0.00115094]
[1738002711241,0.3608,99417.0,99416.0,0.00015094]
[1738002711931,0.050317,99404.0,99383.0,0.0922]
[1738002712134,0.006,99418.0,99379.0,0.0014]
[1738002712135,0.562106,99386.0,99379.0,0.0014]
[1738002712331,0.20132,99379.0,99378.0,0.2397304]
[1738002713230,0.3608,99385.0,99369.0,0.00015094]
[1738002713544,0.562124,99377.0,99369.0,0.00015094]
[1738002714240,0.201338,99370.0,99369.0,0.00015094]
[1738002716448,0.21045179,99370.0,99369.0,0.00215094]
[1738002716741,0.21045179,99370.0,99369.0,0.00315094]
[1738002717133,0.201338,99370.0,99369.0,0.00315094]
[1738002721154,0.201338,99370.0,99369.0,9.4e-07]
[1738002721940,0.501338,99370.0,99369.0,9.4e-07]
[1738002722449,0.201356,99361.0,99360.0,8.8e-07]
[1738002722757,0.562156,99361.0,99360.0,8.8e-07]
[1738002723044,0.862156,99361.0,99360.0,8.8e-07]
[1738002723453,0.6608,99361.0,99315.0,0.0872]
[1738002723650,0.201431,99324.0,99301.0,0.201476]
[1738002723855,0.562231,99324.0,99322.0,0.0967324]
[1738002724040,0.5483,99323.0,99322.0,4e-07]
[1738002725259,0.4571,99323.0,99322.0,4e-07]
[1738002725444,0.4571,99323.0,99313.0,0.00015102]
[1738002725646,0.562251,99314.0,99313.0,0.00015102]
[1738002726554,0.3608,99314.0,99313.0,0.00015102]
[1738002726743,0.00015102,99332.0,99313.0,0.00015102]
[1738002726949,0.3608,99346.0,99326.0,0.3608]
[1738002727144,0.201392,99344.0,99334.0,0.3608]
[1738002727349,0.3608,99346.0,99334.0,0.3608]
[1738002727657,0.3608,99360.0,99345.0,0.3608]
[1738002727845,0.201383,99348.0,99347.0,0.3608]
[1738002728161,0.201383,99348.0,99334.0,0.3608]
[1738002728162,0.201389,99345.0,99344.0,0.0881]
[1738002728350,0.5070655,99360.0,99345.0,0.201388]
[1738002728552,0.5070655,99360.0,99344.0,0.0881]
[1738002728749,0.201389,99345.0,99344.0,0.0881]
[1738002729054,0.5070655,99360.0,99344.0,0.0881]
[1738002729055,0.202383,99348.0,99344.0,0.0881]
[1738002729254,0.00015102,99362.0,99344.0,0.0881]
[1738002729444,0.00015102,99362.0,99356.0,0.201366]
[1738002729642,0.00015102,99362.0,99351.0,0.201376]
[1738002729843,0.003,99360.0,99350.0,0.5070655]
[1738002730147,0.3608,99394.0,99372.0,0.201334]
[1738002730342,0.201307,99386.0,99373.0,0.4561]
[1738002730557,0.59907511,99407.0,99373.0,0.4561]
[1738002730861,0.201306,99386.0,99373.0,0.4561]
[1738002731048,0.36984799,99394.0,99373.0,0.4561]
[1738002731246,0.201319,99380.0,99373.0,0.4561]
[1738002731457,0.00015102,99383.0,99373.0,0.4561]
[1738002731650,0.201324,99377.0,99373.0,0.0953]
[1738002731856,0.201321,99379.0,99373.0,0.0953]
[1738002732055,0.201327,99376.0,99373.0,0.0953]
[1738002732268,0.201346,99366.0,99365.0,0.00144]
[1738002732562,0.201346,99366.0,99364.0,0.00015102]
[1738002733146,0.201335,99372.0,99364.0,0.00015102]
[1738002733354,0.00015102,99383.0,99370.0,0.3608]
[1738002733654,0.00015102,99383.0,99379.0,0.20132]
[1738002733846,0.00015102,99383.0,99381.0,0.201314]
[1738002734457,0.00299,99397.0,99379.0,0.1847]
[1738002734668,0.00299,99397.0,99390.0,0.201297]
[1738002734844,0.00299,99397.0,99387.0,0.5070655]
[1738002735049,0.00299,99397.0,99387.0,0.3608]
[1738002735348,0.3608,99392.0,99379.0,0.0898]
[1738002735548,0.201311,99384.0,99379.0,0.0898]
[1738002735960,0.002,99383.0,99379.0,0.0898]
[1738002736460,0.201311,99384.0,99379.0,0.0898]
[1738002736666,0.3618,99392.0,99378.0,0.3608]
[1738002736957,0.3608,99392.0,99378.0,0.3608]
[1738002737150,0.001,99383.0,99380.0,0.1462655]
[1738002738659,0.001,99383.0,99378.0,0.3622]
[1738002738660,0.001,99383.0,99371.0,0.0926]
[1738002738854,0.3628,99384.0,99375.0,0.201327]
[1738002739055,0.3628,99384.0,99371.0,0.4534]
[1738002739056,0.002,99384.0,99371.0,0.4534]
[1738002739260,0.002,99384.0,99382.0,0.562112]
[1738002739462,0.00015079,99395.0,99383.0,0.0876]
[1738002739664,0.00015079,99395.0,99385.0,0.1462655]
[1738002740160,0.00015079,99395.0,99382.0,0.3622]
[1738002740360,0.201306,99386.0,99371.0,0.654734]
[1738002740555,0.3608,99384.0,99371.0,0.4534]
[1738002740750,0.3608,99384.0,99371.0,0.3618]
[1738002740951,0.201333,99373.0,99371.0,0.001]
[1738002741547,0.201348,99365.0,99358.0,0.00150957]
[1738002741748,0.562148,99365.0,99358.0,0.00150957]
[1738002741959,0.201348,99365.0,99358.0,0.00150957]
[1738002742264,0.201339,99370.0,99361.0,0.201355]
[1738002742459,0.00015079,99374.0,99358.0,0.00150957]
[1738002742658,0.3608,99367.0,99358.0,0.00150957]
[1738002742864,0.3608,99367.0,99364.0,0.00315102]
[1738002743253,0.00015079,99374.0,99369.0,0.201338]
[1738002743456,0.00015079,99374.0,99373.0,0.201332]
[1738002743661,0.3608,99396.0,99368.0,0.093]
[1738002743850,0.2013,99389.0,99376.0,0.3608]
[1738002744048,0.201288,99395.0,99379.0,0.1462655]
[1738002744248,0.3608,99396.0,99379.0,0.1462655]
[1738002744460,0.3608,99409.0,99392.0,0.201293]
[1738002744648,0.3608,99409.0,99388.0,0.201301]
[1738002744649,0.201285,99396.0,99388.0,0.201301]
[1738002744854,0.3608,99400.0,99390.0,0.201297]
[1738002745356,0.204275,99397.0,99387.0,0.1462655]
[1738002745556,0.201286,99396.0,99387.0,0.1462655]
[1738002745966,0.001,99396.0,99387.0,0.1462655]
[1738002746267,0.001,99396.0,99395.0,0.201287]
[1738002747367,0.00699,99397.0,99394.0,0.3608]
[1738002747665,0.005,99396.0,99395.0,0.201287]
[1738002748064,0.3608,99423.0,99395.0,0.4962]
[1738002748267,0.3608,99439.0,99411.0,0.3608]
[1738002748464,0.201214,99431.0,99421.0,0.3608]
[1738002748660,0.3608,99439.0,99421.0,0.3608]
[1738002748857,0.201218,99429.0,99421.0,0.3608]
[1738002749360,0.201227,99425.0,99421.0,0.3608]
[1738002749557,0.201227,99425.0,99421.0,1.8608]
[1738002749754,0.201227,99425.0,99421.0,0.3608]
[1738002749962,0.3608,99439.0,99421.0,0.3608]
[1738002750252,0.12595179,99427.0,99421.0,0.3618]
[1738002751270,0.12795179,99427.0,99421.0,0.3618]
[1738002751857,0.201242,99418.0,99414.0,0.00015094]
[1738002752061,0.3608,99423.0,99414.0,0.00015094]
[1738002752257,0.201247,99415.0,99414.0,0.00015094]
[1738002752566,0.3608,99423.0,99414.0,0.00015094]
[1738002752766,0.562047,99415.0,99414.0,0.00015094]
[1738002753166,0.201247,99415.0,99414.0,0.00015094]
[1738002753955,0.201277,99400.0,99399.0,0.3608]
[1738002754569,0.1813,99415.0,99399.0,0.3608]
[1738002754570,0.382547,99415.0,99414.0,0.001]
[1738002754972,0.39208873,99415.0,99414.0,0.001]
[1738002755474,0.201265,99406.0,99405.0,0.00015094]
[1738002756766,0.201265,99406.0,99405.0,0.00315094]
[1738002757762,0.1813,99415.0,99405.0,0.00515094]
[1738002757963,0.201261,99409.0,99405.0,0.00515094]
[1738002758365,0.1813,99415.0,99405.0,0.00515094]
[1738002758772,0.201257,99410.0,99405.0,0.00515094]
[1738002758975,0.092,99415.0,99405.0,0.00615094]
[1738002759166,0.201258,99410.0,99406.0,0.201264]
[1738002759361,0.201249,99414.0,99408.0,0.20126]
[1738002759757,0.201249,99414.0,99409.0,0.201258]
[1738002759963,0.092,99415.0,99406.0,1.50148]
[1738002760264,0.092,99415.0,99405.0,0.00615094]
[1738002760666,0.201249,99415.0,99407.0,0.562062]
[1738002760867,0.00015094,99424.0,99407.0,0.3608]
[1738002761177,0.00015094,99424.0,99416.0,0.3608]
[1738002761359,0.201237,99420.0,99416.0,0.3608]
[1738002761567,0.11896179,99422.0,99407.0,0.3608]
[1738002761861,0.20126,99409.0,99408.0,0.004]
[1738002762265,0.291543,99417.0,99416.0,0.001]
[1738002762764,0.291543,99417.0,99407.0,0.004]
[1738002762765,0.0903,99417.0,99407.0,0.004]
[1738002762968,0.201261,99408.0,99407.0,0.004]
[1738002763372,0.652343,99417.0,99416.0,0.002]
[1738002764271,0.652343,99417.0,99416.0,0.001]
[1738002765076,0.201261,99408.0,99407.0,0.004]
[1738002765669,0.562061,99408.0,99407.0,0.002]
[1738002765977,0.201261,99408.0,99407.0,0.002]
[1738002766173,0.201265,99406.0,99405.0,0.00015094]
[1738002767184,0.201285,99396.0,99382.0,0.201312]
[1738002767369,0.562085,99396.0,99375.0,0.09030931]
[1738002767685,0.201326,99376.0,99375.0,0.00150931]
[1738002768568,0.562126,99376.0,99375.0,0.00150931]
[1738002768976,0.562126,99376.0,99375.0,0.00550931]
[1738002769983,0.562126,99376.0,99375.0,0.00150931]
[1738002770167,0.562126,99376.0,99366.0,0.00015094]
[1738002770168,0.201344,99367.0,99366.0,0.00015094]
[1738002770479,0.562144,99367.0,99366.0,0.00015094]
[1738002771669,0.562144,99367.0,99366.0,0.00415094]
[1738002772374,0.562144,99367.0,99366.0,0.00015094]
[1738002772574,0.562144,99367.0,99366.0,0.00215094]
[1738002773273,0.562144,99367.0,99366.0,0.00015094]
[1738002773463,0.562144,99367.0,99366.0,0.00215094]
[1738002773663,0.562144,99367.0,99366.0,0.00515094]
[1738002773869,0.201344,99367.0,99366.0,0.00515094]
[1738002774083,0.562144,99367.0,99366.0,0.00315094]
[1738002774377,0.562144,99367.0,99366.0,0.00515094]
[1738002774983,0.562144,99367.0,99366.0,0.00215094]
[1738002775175,0.562144,99367.0,99366.0,0.00515094]
[1738002775675,0.562144,99367.0,99366.0,0.00315094]
[1738002775875,0.3608,99367.0,99341.0,0.201395]
[1738002776078,0.3608,99367.0,99340.0,0.1462655]
[1738002776281,0.562144,99367.0,99366.0,0.003]
[1738002776665,0.562144,99367.0,99366.0,0.005]
[1738002776865,0.57149207,99367.0,99366.0,0.005]
[1738002777295,0.57149207,99367.0,99366.0,0.003]
[1738002777482,0.57149207,99367.0,99366.0,0.005]
[1738002778482,0.57449207,99367.0,99366.0,0.002]
[1738002778973,0.57149207,99367.0,99366.0,0.002]
[1738002779170,0.57549207,99367.0,99366.0,0.002]
[1738002779371,0.37414807,99367.0,99357.0,0.00015094]
[1738002779672,0.562162,99358.0,99357.0,0.00015094]
[1738002781582,0.201352,99363.0,99362.0,0.201348]
[1738002781788,0.205344,99367.0,99366.0,0.201346]
[1738002782083,0.004,99367.0,99366.0,0.562146]
[1738002782287,0.201333,99373.0,99371.0,0.201334]
[1738002782790,0.00015094,99376.0,99366.0,1.50144]
[1738002782987,0.00015094,99376.0,99366.0,1.5]
[1738002783188,0.201334,99372.0,99366.0,0.3608]
[1738002783487,0.201334,99372.0,99371.0,0.002]
[1738002783672,0.00015094,99376.0,99371.0,0.002]
[1738002783871,0.00015094,99376.0,99375.0,0.201328]
[1738002784077,0.201304,99387.0,99377.0,0.201322]
[1738002784276,0.201304,99387.0,99379.0,0.20132]
[1738002784469,0.201314,99382.0,99375.0,0.3608]
[1738002784680,0.201304,99387.0,99375.0,0.3608]
[1738002784991,0.2013,99389.0,99383.0,0.3608]
[1738002785281,0.14841461,99390.0,99384.0,0.1812]
[1738002785483,0.14841461,99390.0,99385.0,0.0855]
[1738002785686,0.14841461,99390.0,99388.0,0.201301]
[1738002785883,0.14841461,99390.0,99389.0,0.201299]
[1738002786585,0.201247,99415.0,99389.0,0.00935181]
[1738002786786,0.20780939,99421.0,99413.0,0.3608]
[1738002786987,0.201242,99418.0,99413.0,0.3608]
[1738002787288,0.201242,99418.0,99402.0,1.5]
[1738002787289,0.201271,99404.0,99402.0,1.5014]
[1738002787491,0.3608,99409.0,99389.0,0.0847]
[1738002787786,0.36095094,99409.0,99389.0,0.08485094]
[1738002787981,0.201291,99393.0,99390.0,1.5]
[1738002788290,0.45025094,99409.0,99389.0,0.08685094]
[1738002788481,0.3608,99401.0,99389.0,0.08685094]
[1738002788882,0.45025094,99409.0,99400.0,0.201277]
[1738002788883,0.08945094,99409.0,99400.0,0.201277]
[1738002789181,0.00015094,99409.0,99408.0,0.3608]
[1738002790189,0.00015094,99409.0,99408.0,0.37018424]
[1738002790385,0.20780939,99421.0,99408.0,0.37018424]
[1738002790585,0.20780939,99421.0,99420.0,0.201237]
[1738002792690,0.21280939,99421.0,99420.0,0.202237]
[1738002792891,0.00299,99427.0,99426.0,0.201224]
[1738002793096,0.00299,99427.0,99426.0,2.062024]
[1738002793295,0.00299,99427.0,99426.0,1.8608]
[1738002793701,0.00299,99427.0,99426.0,0.3608]
[1738002794200,0.201234,99422.0,99420.0,0.001]
[1738002794381,0.562034,99422.0,99420.0,0.001]
[1738002795400,0.201252,99413.0,99411.0,0.00015094]
[1738002795788,0.0904,99412.0,99411.0,0.00015094]
[1738002796594,0.00299,99427.0,99411.0,0.00015094]
[1738002796800,0.00299,99427.0,99425.0,0.201225]
[1738002797098,0.091,99436.0,99429.0,0.201217]
[1738002797289,0.091,99436.0,99431.0,0.3608]
[1738002797486,0.091,99436.0,99426.0,1.6477455]
[1738002797789,0.201207,99435.0,99426.0,1.6462655]
[1738002797992,0.201216,99431.0,99426.0,1.5]
[1738002798200,0.4518,99436.0,99426.0,1.5]
[1738002798392,0.091,99436.0,99429.0,0.201218]
[1738002798696,0.00299,99442.0,99441.0,0.201194]
[1738002798901,0.091,99454.0,99441.0,0.3608]
[1738002799094,0.00968451,99466.0,99449.0,0.3608]
[1738002799289,0.204153,99457.0,99447.0,0.201181]
[1738002800094,0.00299,99457.0,99444.0,0.1462655]
[1738002800292,0.561976,99450.0,99449.0,0.001]
[1738002802003,0.201198,99439.0,99438.0,0.00015086]
[1738002803085,0.0096163,99439.0,99409.0,0.3608]
[1738002803304,0.3608,99431.0,99412.0,0.201253]
[1738002803604,0.3608,99431.0,99409.0,0.3608]
[1738002803605,0.201257,99410.0,99409.0,0.3608]
[1738002803897,0.3608,99423.0,99409.0,0.3608]
[1738002804503,0.201257,99410.0,99409.0,0.3608]
[1738002805706,0.086,99422.0,99406.0,0.00015086]
[1738002806001,0.086,99422.0,99410.0,0.3475215]
[1738002806193,0.201244,99417.0,99410.0,0.3475215]
[1738002806394,0.086,99422.0,99411.0,0.201255]
[1738002806595,0.00956441,99426.0,99410.0,0.1462655]
[1738002806596,0.201238,99420.0,99410.0,0.1462655]
[1738002806903,0.00015058,99426.0,99410.0,0.1462655]
[1738002807405,0.201238,99420.0,99410.0,0.3475225]
[1738002807700,0.20137658,99426.0,99418.0,0.201241]
[1738002807895,0.00015058,99426.0,99419.0,0.201238]
[1738002808098,0.00015058,99426.0,99424.0,0.3608]
[1738002808596,0.00015058,99426.0,99425.0,0.201227]
[1738002809207,0.20118,99449.0,99440.0,0.201196]
[1738002809503,0.20118,99449.0,99441.0,0.201194]
[1738002809904,0.0872,99455.0,99439.0,0.3608]
[1738002810202,0.201196,99440.0,99439.0,0.3608]
[1738002810405,0.0872,99455.0,99436.0,0.00015086]
[1738002810406,0.201202,99437.0,99436.0,0.00015086]
[1738002810610,0.201196,99441.0,99436.0,0.00015086]
[1738002810903,0.201192,99443.0,99436.0,0.00015086]
[1738002811088,0.0872,99455.0,99436.0,0.00015086]
[1738002811292,0.137491,99455.0,99436.0,0.00015086]
[1738002811507,0.201195,99441.0,99436.0,0.00015086]
[1738002811691,0.0872,99455.0,99436.0,0.00015086]
[1738002811893,0.003,99449.0,99446.0,0.201182]
[1738002812099,0.003,99449.0,99441.0,0.3608]
[1738002812100,0.003,99449.0,99447.0,0.201182]
[1738002812289,0.003,99449.0,99444.0,0.201188]
[1738002812493,0.0872,99455.0,99442.0,0.0932]
[1738002812695,0.0872,99455.0,99451.0,0.561974]
[1738002813204,0.20115,99463.0,99451.0,0.561974]
[1738002813596,0.201137,99470.0,99451.0,0.561974]
[1738002813801,0.201137,99470.0,99451.0,0.3608]
[1738002813993,0.0927,99471.0,99467.0,0.3608]
[1738002814200,0.00299,99472.0,99467.0,0.3608]
[1738002814409,0.00299,99472.0,99471.0,0.201133]
[1738002814603,0.00299,99472.0,99468.0,0.0896]
[1738002814906,0.00299,99472.0,99471.0,0.201133]
[1738002815807,0.0927,99487.0,99480.0,0.201114]
[1738002816013,0.0927,99487.0,99481.0,0.561913]
[1738002816396,0.0927,99487.0,99481.0,0.3608]
[1738002816600,0.0927,99487.0,99477.0,0.1462655]
[1738002816799,0.201113,99482.0,99477.0,0.1462655]
[1738002817002,0.0927,99487.0,99471.0,1.5014]
[1738002817322,0.0927,99487.0,99471.0,1.5]
[1738002817497,0.201111,99483.0,99471.0,1.5]
[1738002817693,0.0927,99487.0,99471.0,1.701133]
[1738002817893,0.0927,99487.0,99476.0,0.201123]
[1738002818099,0.0927,99487.0,99475.0,0.3608]
[1738002818614,0.201122,99477.0,99475.0,0.3608]
[1738002818801,0.201137,99470.0,99468.0,0.00960401]
[1738002818995,0.3608,99477.0,99460.0,0.51523923]
[1738002819204,0.201127,99475.0,99464.0,0.201147]
[1738002819397,0.10351053,99487.0,99473.0,0.3608]
[1738002819707,0.201124,99476.0,99473.0,0.3608]
[1738002820215,0.201127,99474.0,99473.0,0.3608]
[1738002820511,0.201146,99465.0,99460.0,0.3595]
[1738002820700,0.050279,99479.0,99459.0,0.00015086]
[1738002820701,0.201156,99460.0,99459.0,0.00015086]
[1738002821602,0.1757,99467.0,99459.0,0.00015086]
[1738002821801,0.201146,99465.0,99459.0,0.00015086]
[1738002821996,0.20115,99463.0,99459.0,0.00015086]
[1738002822407,0.1757,99467.0,99459.0,0.00215086]
[1738002822609,0.376843,99467.0,99459.0,0.00215086]
[1738002822804,0.201144,99466.0,99461.0,0.3608]
[1738002823009,0.050272,99493.0,99466.0,0.201142]
[1738002823196,0.09673778,99486.0,99461.0,0.561952]
[1738002823402,0.3608,99471.0,99459.0,0.00515086]
[1738002823602,0.201156,99460.0,99459.0,0.00515086]
[1738002824705,0.201156,99460.0,99459.0,0.00315086]
[1738002824909,0.201156,99460.0,99459.0,0.00215086]
[1738002825416,0.201156,99460.0,99459.0,0.00415086]
[1738002826119,0.201156,99460.0,99459.0,0.00515086]
[1738002826413,0.20117,99453.0,99452.0,0.49592]
[1738002827714,0.20117,99453.0,99452.0,0.35942]
[1738002828121,0.3608,99454.0,99453.0,0.20117]
[1738002828300,0.20130261,99462.0,99457.0,0.20116]
[1738002828505,0.00015061,99462.0,99452.0,0.35942]
[1738002828718,0.00015061,99462.0,99458.0,1.5]
[1738002829021,0.00015061,99462.0,99461.0,0.201154]
[1738002829714,0.00015061,99462.0,99458.0,1.50144]
[1738002829913,0.20130461,99462.0,99458.0,1.5]
[1738002830213,0.20130461,99462.0,99458.0,1.51244061]
[1738002830616,0.20130361,99462.0,99458.0,1.503]
[1738002830803,0.201158,99459.0,99458.0,1.503]
[1738002831007,0.201158,99459.0,99458.0,0.003]
[1738002831827,0.201169,99454.0,99452.0,0.36142]
[1738002832008,0.201158,99459.0,99452.0,0.35942]
[1738002832321,0.00015061,99462.0,99461.0,0.201154]
[1738002832908,0.00015061,99462.0,99461.0,1.5]
[1738002833106,0.00015061,99462.0,99461.0,1.701154]
[1738002833509,0.00015061,99462.0,99461.0,1.702154]
[1738002834607,0.0872,99475.0,99462.0,0.201151]
[1738002834812,0.0872,99475.0,99473.0,0.201128]
[1738002835113,0.0876,99476.0,99473.0,0.201128]
[1738002835312,0.201105,99486.0,99477.0,0.201121]
[1738002835506,0.167,99487.0,99477.0,0.201121]
[1738002835707,0.0852,99497.0,99480.0,0.3608]
[1738002836014,0.201092,99492.0,99483.0,0.201107]
[1738002836209,0.201095,99491.0,99483.0,0.201107]
[1738002836411,0.0852,99497.0,99480.0,0.3608]
[1738002836719,0.201093,99491.0,99483.0,0.201109]
[1738002837017,0.00399,99488.0,99483.0,0.201109]
[1738002837413,0.00399,99488.0,99480.0,0.3608]
[1738002837611,0.201129,99473.0,99472.0,0.00015078]
[1738002839327,0.21157933,99473.0,99472.0,0.00015078]
[1738002839906,0.201142,99467.0,99466.0,0.17992803]
[1738002840107,0.561942,99467.0,99466.0,0.17992803]
[1738002840310,0.561942,99467.0,99466.0,0.04362803]
[1738002841613,0.201142,99467.0,99466.0,0.04362803]
[1738002842217,0.201142,99467.0,99460.0,0.23986887]
[1738002842218,0.3608,99469.0,99460.0,0.23986887]
[1738002842520,0.3608,99461.0,99457.0,0.00015078]
[1738002842725,0.20116,99458.0,99457.0,0.00015078]
[1738002844517,0.21102591,99458.0,99457.0,0.00015078]
[1738002845008,0.21102591,99458.0,99457.0,0.00215078]
[1738002845209,0.201196,99440.0,99439.0,0.23986887]
[1738002845412,0.561996,99440.0,99439.0,0.23986887]
[1738002846116,0.3608,99440.0,99439.0,0.23986887]
[1738002846316,0.3608,99463.0,99439.0,0.23986887]
[1738002846621,0.3608,99463.0,99448.0,0.56198]
[1738002846622,0.00015078,99449.0,99448.0,0.56198]
[1738002847225,0.00015078,99449.0,99448.0,1.8608]
[1738002847524,0.20132878,99449.0,99448.0,1.5]
[1738002848124,0.00015078,99449.0,99448.0,1.5]
[1738002848523,0.00015078,99449.0,99448.0,1.70218]
[1738002848725,0.11962858,99462.0,99448.0,1.8618]
[1738002849024,0.11962858,99462.0,99460.0,0.3608]
[1738002849223,0.11962858,99462.0,99461.0,0.201154]
[1738002850218,0.00015078,99471.0,99468.0,0.20114]
[1738002850428,0.00015078,99471.0,99468.0,0.56194]
[1738002850929,0.00015078,99471.0,99468.0,0.3608]
[1738002851315,0.00015078,99471.0,99470.0,0.201136]
[1738002851522,0.11992316,99477.0,99476.0,0.201123]
[1738002851829,0.11992316,99477.0,99476.0,0.561923]
[1738002853031,0.12092316,99477.0,99476.0,0.561923]
[1738002854428,0.14923135,99483.0,99482.0,0.201111]
[1738002854731,0.1,99500.0,99483.0,0.050277]
[1738002854931,0.0838,99517.0,99502.0,0.201071]
[1738002855127,0.09059,99518.0,99516.0,0.201043]
[1738002855128,0.00299,99518.0,99516.0,0.201043]
[1738002855332,0.00299,99518.0,99517.0,0.3608]
[1738002855728,0.00299,99518.0,99517.0,1.8608]
[1738002855924,1e-08,99519.0,99518.0,0.201039]
[1738002856531,0.1798878,99526.0,99525.0,0.201024]
[1738002856730,0.20816782,99541.0,99540.0,0.200994]
[1738002856934,0.20816782,99541.0,99540.0,0.561794]
[1738002857128,0.20816782,99541.0,99540.0,0.200994]
[1738002857330,0.20816782,99541.0,99531.0,0.14641619]
[1738002857635,0.20816782,99541.0,99539.0,0.561794]
[1738002859041,0.21116782,99541.0,99539.0,0.561794]
[1738002859730,0.20816782,99541.0,99539.0,0.562794]
[1738002859926,0.20816782,99541.0,99539.0,0.564794]
[1738002860129,0.36379,99548.0,99539.0,0.003]
[1738002860328,0.4408,99540.0,99531.0,0.00015069]
[1738002860536,0.201026,99524.0,99523.0,0.23986887]
[1738002860723,0.561826,99524.0,99523.0,0.23986887]
[1738002861636,0.201025,99525.0,99523.0,0.23986887]
[1738002861934,0.201021,99527.0,99523.0,0.23986887]
[1738002862124,0.20101,99532.0,99523.0,0.23986887]
[1738002862321,0.0001504,99533.0,99523.0,0.24286887]
[1738002862523,0.201021,99527.0,99523.0,0.24286887]
[1738002862735,0.20101,99532.0,99523.0,0.24286887]
[1738002862940,0.201019,99528.0,99523.0,0.24386887]
[1738002863131,0.0001504,99533.0,99523.0,0.60566887]
[1738002863530,0.201013,99531.0,99526.0,0.3608]
[1738002863837,0.201013,99531.0,99523.0,0.24486887]
[1738002864038,0.201013,99531.0,99523.0,0.005]
[1738002864230,0.0001504,99533.0,99523.0,0.005]
[1738002864542,0.201017,99529.0,99523.0,0.001]
[1738002864734,0.0001504,99533.0,99523.0,0.3638]
[1738002865039,0.0001504,99533.0,99532.0,0.3608]
[1738002865237,0.3608,99558.0,99532.0,0.3608]
[1738002865238,0.200976,99550.0,99532.0,0.3608]
[1738002865431,0.200976,99550.0,99538.0,0.1462655]
[1738002865632,0.200976,99550.0,99547.0,0.3608]
[1738002865831,0.200976,99550.0,99539.0,0.200996]
[1738002866528,0.00599,99548.0,99540.0,0.3608]
[1738002867231,0.00599,99548.0,99543.0,0.200988]
[1738002868041,0.00599,99548.0,99540.0,0.3608]
[1738002868240,0.00299,99548.0,99540.0,0.37046069]
[1738002868743,0.00299,99548.0,99540.0,0.57145369]
[1738002868937,0.00299,99548.0,99543.0,0.004]
[1738002869140,0.3608,99579.0,99544.0,0.14252]
[1738002869347,0.200908,99583.0,99569.0,0.200934]
[1738002869537,0.200905,99585.0,99573.0,0.561727]
[1738002869733,0.18119707,99589.0,99573.0,0.3608]
[1738002870044,0.3608,99585.0,99573.0,0.3608]
[1738002870243,0.200924,99575.0,99573.0,0.3608]
[1738002870433,0.3608,99585.0,99566.0,0.00015069]
[1738002870633,0.200939,99568.0,99566.0,0.00015069]
[1738002870833,0.561739,99568.0,99566.0,0.00015069]
[1738002871028,0.0816,99567.0,99566.0,0.00015069]
[1738002872140,0.25118,99565.0,99544.0,0.36230691]
[1738002872342,0.200981,99547.0,99544.0,0.36230691]
[1738002872537,0.200984,99545.0,99544.0,0.36230691]
[1738002872741,0.200984,99545.0,99544.0,0.00150691]
[1738002873631,0.19666166,99545.0,99544.0,0.00150691]
[1738002873836,0.19666166,99545.0,99544.0,0.00550691]
[1738002874241,0.19666166,99545.0,99544.0,0.004]
[1738002874634,0.3608,99551.0,99536.0,0.23986887]
[1738002874834,0.5618,99537.0,99536.0,0.23986887]
[1738002875950,0.5618,99537.0,99535.0,0.00015069]
[1738002876138,0.0872,99536.0,99535.0,0.00015069]
[1738002876339,0.1717,99536.0,99535.0,0.00015069]
[1738002877638,0.372702,99536.0,99535.0,0.00015069]
[1738002877838,0.453602,99536.0,99535.0,0.00015069]
[1738002878349,0.453602,99536.0,99535.0,0.00315069]
[1738002878545,0.453602,99536.0,99535.0,0.00415069]
[1738002878938,0.454602,99536.0,99535.0,0.00115069]
[1738002879551,0.456602,99536.0,99535.0,0.00115069]
[1738002880045,0.453602,99536.0,99535.0,0.00015069]
[1738002882243,0.816402,99536.0,99535.0,0.00015069]
[1738002882448,0.818402,99536.0,99535.0,0.00015069]
[1738002882749,0.816402,99536.0,99535.0,0.00015069]
[1738002882942,0.816402,99536.0,99535.0,0.00115069]
[1738002883956,0.455602,99536.0,99535.0,0.00115069]
[1738002884342,0.455602,99536.0,99535.0,0.00015069]
[1738002884643,0.201002,99536.0,99535.0,0.00015069]
[1738002885144,0.200992,99542.0,99535.0,0.00015069]
[1738002885351,0.200999,99538.0,99536.0,0.3608]
[1738002885548,0.201002,99536.0,99535.0,0.00015069]
[1738002885861,0.201002,99536.0,99535.0,1.50215069]
[1738002886150,0.201002,99536.0,99535.0,0.00015069]
[1738002886351,0.201002,99536.0,99535.0,0.00315069]
[1738002887958,0.201002,99536.0,99535.0,0.00215069]
[1738002888143,0.201002,99536.0,99535.0,0.00315069]
[1738002888657,0.21056383,99536.0,99535.0,0.00115069]
[1738002889151,0.21056383,99536.0,99529.0,0.2980376]
[1738002889152,0.050251,99535.0,99514.0,0.00150736]